[Event "Julius Baer Generation Cup KO 2022"]
[Site "Online"]
[Date "2022.09.22"]
[Round "1.1"]
[White "Niemann, Hans Moke"]
[Black "Le, Quang Liem"]
[Result "0-1"]
[ECO "A37"]
[WhiteElo "2688"]
[BlackElo "2728"]
[Annotator "TA"]
[PlyCount "82"]
[EventDate "2022.09.22"]
[EventType "k.o."]
[EventCountry "NET"]
[SourceTitle "playchess.com"]
[Source "ChessBase"]
[SourceQuality "1"]
[TimeControl "900+10"]

{[%evp 12,82,17,8,19,8,13,0,18,0,48,21,18,-104,-110,-116,-113,-89,-116,-97,-84,-79,-51,-61,-58,-54,-50,-54,-39,-39,-54,-55,-60,-106,-113,-105,-73,-71,-67,-74,-67,-61,-76,-60,-75,-59,-70,-99,-68,-125,-60,-138,-108,-115,-105,-133,-123,-137,-125,-395,-229,-333,-299,-349,-349,-325,-300,-469,-450,-877,-850,-752,-618]} 1. c4 {[%emt 0:00:00]} c5 {[%emt 0:00:00]} 2. Nf3 {[%emt 0:00:09]} Nc6 {[%emt 0:00:07]} 3. g3 {[%emt 0:00:03]} g6 {[%emt 0:00:04]} 4. Bg2 {[%emt 0:00:12]} Bg7 {[%emt 0:00:09]} 5. Nc3 {[%emt 0:00:10]} Nh6 {[%emt 0:00:49]} 6. d3 {[%emt 0:00:45]} Nf5 {[%emt 0:00:05]} 7. O-O {[%emt 0:00:01]} d6 {[%emt 0:00:04] A37: Symmetrical English vs ...g6: 4 Bg2 Bg7 5 Nf3.} 8. Qd2 {[%emt 0:00:03] [#]} h5 $146 {[%emt 0:00:24]} ({Predecessor:} 8... O-O 9. b3 Rb8 10. Bb2 a6 11. Nd5 e5 12. Ng5 Nce7 13. f4 b6 14. g4 Nxd5 15. Bxd5 {1-0 (39) Theodorou,N (2554)-Stukopin,A (2564) Dulles 2021}) 9. h3 {[%emt 0:00:24]} Bd7 {[%emt 0:01:18] The position is equal.} 10. b3 {[%emt 0:00:08]} Qc8 {[%emt 0:00:03]} (10... Nfd4 $11 {might be stronger.}) 11. Bb2 {[%emt 0:00:03]} Nfd4 {[%emt 0:00:01]} 12. Nxd4 {[%emt 0:00:10]} (12. h4 $11) 12... cxd4 $17 {[%emt 0:00:50]} 13. Nd5 {[%emt 0:00:05]} Bxh3 {[%emt 0:00:01]} 14. Nc7+ {[%emt 0:01:10]} Qxc7 {[%emt 0:00:10]} 15. Bxh3 {[%emt 0:00:01]} O-O {[%emt 0:00:23]} 16. b4 {[%emt 0:00:06]} a6 {[%emt 0:00:33][%cal Ba7a6,Ba6a5][%mdl 32]} 17. a4 {[%emt 0:00:05]} e6 {[%emt 0:00:10]} 18. Bg2 {[%emt 0:00:04]} a5 {[%emt 0:00:44]} 19. b5 {[%emt 0:00:19]} Nb8 {[%emt 0:00:05]} 20. Qf4 {[%emt 0:00:35]} Nd7 {[%emt 0:00:07]} 21. Ba3 {[%emt 0:00:36]} ({But not} 21. Bxd4 $2 e5 22. Qf3 exd4 $19) 21... Be5 {[%emt 0:00:02]} 22. Qf3 {[%emt 0:00:25]} (22. Qg5 $15 {is more appropriate.}) 22... Rab8 {[%emt 0:00:03]} 23. Rfb1 {[%emt 0:00:04][%cal Ob5b6]} b6 {[%emt 0:00:33]} 24. Qc6 {[%emt 0:00:07] [#]} Qd8 {[%emt 0:00:01]} 25. f4 $1 {[%emt 0:00:10]} ({Don't go for} 25. Bxd6 $2 Rc8 26. Bxf8 Rxc6 $19) 25... Rc8 {[%emt 0:00:07]} 26. Qf3 {[%emt 0:01:10]} Bf6 {[%emt 0:00:01]} 27. Bxd6 {[%emt 0:00:01]} Be7 {[%emt 0:00:01]} 28. Bxe7 {[%emt 0:00:08]} Qxe7 {[%emt 0:00:00]} 29. e4 {[%emt 0:00:03]} Nc5 {[%emt 0:00:42]} 30. e5 {[%emt 0:00:06]} (30. Rf1 $15) 30... f5 {[%emt 0:00:49]} (30... Kg7 $17 31. Rf1 f6 32. exf6+ Qxf6) 31. exf6 {[%emt 0:00:03]} (31. Kf2 $15) 31... Qxf6 {[%emt 0:00:07]} 32. Re1 {[%emt 0:00:06]} Rc7 {[%emt 0:00:48]} 33. Re2 {[%emt 0:01:44]} h4 {[%emt 0:00:03]} 34. Rae1 {[%emt 0:00:44] [#]} Qf5 {[%emt 0:03:44] Inhibits Qg4. Black is more active.} 35. gxh4 $2 {[%emt 0:02:33][%mdl 8192] This move loses the game for White.} (35. Re4 $17) 35... Qxd3 {[%emt 0:00:13]} (35... Nxd3 $142 36. Bf1 Nxe1 37. Rxe1 Qxf4 38. Qxf4 Rxf4 39. Rxe6 Rg4+ 40. Kh2 Rh7) 36. Rxe6 {[%emt 0:02:03]} (36. Qxd3 {might work better.} Nxd3 37. Rf1) 36... Qxf3 $19 {[%emt 0:00:04]} 37. Bxf3 {[%emt 0:00:03]} Nxe6 {[%emt 0:00:01]} 38. Rxe6 {[%emt 0:00:02]} Rxf4 $17 {[%emt 0:00:29] KRR-KRB} 39. Be2 {[%emt 0:00:23]} (39. Kg2 $142 Kg7 40. Rxb6 Rxc4 41. Rb7+ Kf6 42. Rb8) 39... Kg7 {[%emt 0:01:22] Black is clearly winning.} 40. Rxb6 {[%emt 0:00:02]} (40. Bd3 $142 Rf3 41. Rxg6+ Kf8 42. Be4) 40... Re7 $19 {[%emt 0:00:15]} 41. Bd3 {[%emt 0:00:19]} Re3 {[%emt 0:00:49] Weighted Error Value: White=0.52/Black=0.18 (very precise)} 0-1

[Event "Julius Baer Generation Cup KO 2022"]
[Site "Online"]
[Date "2022.09.22"]
[Round "1.1"]
[White "Praggnanandhaa R"]
[Black "Keymer, Vincent"]
[Result "0-1"]
[ECO "A13"]
[WhiteElo "2676"]
[BlackElo "2693"]
[Annotator "TA"]
[PlyCount "84"]
[EventDate "2022.09.22"]
[EventType "k.o."]
[EventCountry "NET"]
[SourceTitle "playchess.com"]
[Source "ChessBase"]
[SourceQuality "1"]
[TimeControl "900+10"]

{[%evp 14,84,9,7,20,13,20,7,33,30,42,37,49,47,32,38,44,10,10,0,0,0,0,-15,-14,-20,-10,-54,-45,-74,-30,-53,0,-25,0,-24,0,0,0,0,0,0,0,0,0,0,16,16,75,58,118,106,161,162,171,150,162,153,142,75,139,137,127,-710,-701,-1545,-1482,-1329,-1323,-1248,-1188,-4829,-4817]} 1. Nf3 {[%emt 0:00:00]} d5 {[%emt 0:00:00]} 2. g3 {[%emt 0:00:01]} c5 {[%emt 0:00:06]} 3. Bg2 {[%emt 0:00:02]} Nf6 {[%emt 0:00:01]} 4. O-O {[%emt 0:00:02]} e6 {[%emt 0:00:02]} 5. c4 {[%emt 0:00:01]} d4 {[%emt 0:00:02]} 6. e3 {[%emt 0:00:01]} Nc6 {[%emt 0:00:02]} 7. exd4 {[%emt 0:00:07]} cxd4 {[%emt 0:00:01]} 8. d3 {[%emt 0:00:01]} Bc5 {[%emt 0:00:10] A13: English Opening: 1...e6.} 9. Bg5 {[%emt 0:00:15]} h6 {[%emt 0:00:02]} 10. Bxf6 {[%emt 0:00:01] [#]} gxf6 $146 {[%emt 0:00:00] The position is equal.} ({Predecessor:} 10... Qxf6 11. Nbd2 Qd8 12. a3 a5 13. Re1 O-O 14. Ne5 Nxe5 15. Re2 {0-1 (15) Oparin,G (2681)-Niemann,H (2642) Chess.com INT 2022}) 11. Na3 {[%emt 0:01:58]} O-O {[%emt 0:00:29]} 12. Rb1 {[%emt 0:00:45]} Kg7 {[%emt 0:00:34]} 13. Qd2 {[%emt 0:02:12]} Qd6 {[%emt 0:02:03]} 14. Nc2 {[%emt 0:02:33] b4 is the strong threat.} a5 {[%emt 0:00:04][%cal Ba7a5,Ba5a4,Ba4b3][%mdl 32] Inhibits b4.} 15. a3 {[%emt 0:00:52] aiming for b4.} a4 $1 {[%emt 0:00:15]} 16. Qe2 {[%emt 0:00:02]} f5 {[%emt 0:01:28]} ({Don't do} 16... e5 17. Nh4 $14) 17. Nd2 {[%emt 0:00:14]} Bd7 {[%emt 0:00:55]} 18. b4 {[%emt 0:00:49]} axb3 $1 {[%emt 0:00:01]} 19. Nxb3 {[%emt 0:00:03]} b6 {[%emt 0:00:27]} 20. Nxc5 {[%emt 0:00:51]} bxc5 {[%emt 0:00:03]} 21. Rb5 {[%emt 0:00:02]} e5 {[%emt 0:02:20][%cal Oe5e4]} 22. Rfb1 {[%emt 0:00:32]} Rab8 {[%emt 0:01:36][%cal Oe5e4]} (22... Ra6 $5 {[%cal Re5e4]}) 23. Ne1 {[%emt 0:02:17]} Rfe8 {[%emt 0:00:38][%cal Oe5e4]} (23... Ne7 $5 {[%cal Rd7b5]}) 24. Qc2 {[%emt 0:01:15]} Na7 {[%emt 0:01:41][%cal Bc6a7,Ba7c8,Bc8d6][%mdl 32]} 25. Rxb8 {[%emt 0:00:32]} Rxb8 {[%emt 0:00:03]} 26. Rxb8 {[%emt 0:00:04]} Qxb8 {[%emt 0:00:00]} 27. Nf3 {[%emt 0:00:01]} Nc8 {[%emt 0:01:03]} 28. h3 {[%emt 0:01:45]} f6 {[%emt 0:00:40]} 29. Nh4 {[%emt 0:00:14]} Nd6 {[%emt 0:00:52]} 30. Bd5 {[%emt 0:00:03]} Qb6 {[%emt 0:00:24]} (30... Be8 $11) 31. Qd1 {[%emt 0:00:34] And now Qh5 would win.} Qb2 {[%emt 0:01:32] [#]} (31... Kh7 $1 $14) 32. a4 $1 $16 {[%emt 0:00:14]} ({Much worse is} 32. Qh5 $6 Qc1+ 33. Kg2 Qg5 $11) 32... e4 {[%emt 0:00:21]} (32... Be8 $16 {keeps fighting.}) 33. Qh5 $18 {[%emt 0:00:27] White wants to mate with Qg6+.} Qc1+ {[%emt 0:00:22]} 34. Kg2 {[%emt 0:00:11] White threatens Qg6+ and mate.} Qg5 {[%emt 0:01:03] Prevents Qg6+.} 35. Qd1 {[%emt 0:00:01] Threatens to win with a5.} f4 {[%emt 0:00:04] [#]} 36. dxe4 {[%emt 0:00:26]} (36. a5 $142 $1 {[%cal Ra5a6]}) 36... fxg3 $16 {[%emt 0:00:03]} 37. fxg3 {[%emt 0:00:10]} Qe3 {[%emt 0:00:03]} 38. Qc2 {[%emt 0:00:35][%mdl 8192]} (38. Qh5 $16 Qd2+ 39. Kg1 (39. Kh1 Qg5 $16)) 38... d3 $19 {[%emt 0:00:39][%cal Bd4d3,Bd3d2][%mdl 32] Black is clearly winning.} 39. Qf2 {[%emt 0:00:31] [#]} Bxh3+ $1 {[%emt 0:00:24][%mdl 512]} 40. Kg1 {[%emt 0:00:01]} Qc1+ {[%emt 0:00:02]} 41. Kh2 {[%emt 0:00:01]} Qc2 {[%emt 0:00:01]} 42. Kg1 {[%emt 0:00:58]} d2 {[%emt 0:00:05] What a bad dream for White.  Weighted Error Value: White=0.63/Black=0.14 (very precise)} 0-1

[Event "Julius Baer Generation Cup KO 2022"]
[Site "Online"]
[Date "2022.09.22"]
[Round "1.1"]
[White "Yoo, Christopher Woojin"]
[Black "Erigaisi Arjun"]
[Result "1/2-1/2"]
[ECO "D76"]
[WhiteElo "2563"]
[BlackElo "2725"]
[Annotator "TA"]
[PlyCount "134"]
[EventDate "2022.09.22"]
[EventType "k.o."]
[EventCountry "NET"]
[SourceTitle "playchess.com"]
[Source "ChessBase"]
[SourceQuality "1"]
[TimeControl "300+3"]

{[%evp 18,134,18,17,25,0,0,0,-5,0,-2,-1,-2,-2,-2,-28,-31,-28,-30,-118,-112,-120,-17,-38,0,0,0,-141,-132,-134,-30,-18,-27,-32,12,-367,-364,-371,-343,-355,-252,-252,-252,-242,-120,-204,-108,-199,-199,-199,-175,-164,-100,-110,-100,-100,-94,-149,-114,-149,-114,-114,0,-91,-84,-84,-77,-114,-77,-92,-92,-107,0,-77,-70,-150,-70,-77,0,-150,0,-77,-77,-150,0,-77,0,-150,0,-150,-150,-150,0,-78,-70,-70,-60,-60,-60,-60,-60,-60,-60,-60,-12,-12,-12,-14,-14,-20,-15,-15,-15,-15,-12,-12,8,8,8]} 1. d4 {[%emt 0:00:00]} Nf6 {[%emt 0:00:00]} 2. Nf3 {[%emt 0:00:08]} g6 {[%emt 0:00:07]} 3. c4 {[%emt 0:00:02]} Bg7 {[%emt 0:00:02]} 4. Nc3 {[%emt 0:00:05]} O-O {[%emt 0:00:02]} 5. g3 {[%emt 0:00:08]} d5 {[%emt 0:00:04]} 6. cxd5 {[%emt 0:00:01]} Nxd5 {[%emt 0:00:00]} 7. Bg2 {[%emt 0:00:01]} Nc6 {[%emt 0:00:01]} 8. O-O {[%emt 0:00:44]} Nb6 {[%emt 0:00:01]} 9. e3 {[%emt 0:00:02]} Re8 {[%emt 0:00:04]} 10. Re1 {[%emt 0:00:18]} a5 {[%emt 0:00:06] D76: Fianchetto Grünfeld: Main Line with 7...Nb6.} 11. b3 {[%emt 0:00:10]} e5 {[%emt 0:00:04]} 12. Nxe5 {[%emt 0:00:43]} Nxe5 {[%emt 0:00:02]} 13. dxe5 {[%emt 0:00:00]} Qxd1 {[%emt 0:00:00]} 14. Rxd1 {[%emt 0:00:02]} Bxe5 {[%emt 0:00:02]} 15. Bb2 {[%emt 0:00:01]} c6 {[%emt 0:00:16]} 16. Rab1 {[%emt 0:00:28]} Bf5 {[%emt 0:00:25]} 17. Rbc1 {[%emt 0:00:10]} a4 {[%emt 0:00:55][%cal Ba5a4,Ba4a3][%mdl 32] [#]} 18. b4 $146 {[%emt 0:00:02]} (18. Rd2 $11) ({Predecessor:} 18. Rd2 axb3 19. axb3 Red8 20. Rxd8+ Rxd8 21. Na4 Nxa4 22. Bxe5 Nc5 23. b4 Nd3 24. Rd1 {1-0 (37) Antal,T (2349)-Mesaros,F (2158) Iasi 2014}) 18... a3 $17 {[%emt 0:00:14]} 19. Ba1 {[%emt 0:00:01]} Be6 {[%emt 0:00:06]} (19... Rad8 $17 20. b5 cxb5 21. Nxb5 Bb2 22. Bxb7 Bxc1 23. Rxc1 Rb8) 20. b5 $11 {[%emt 0:00:02]} Rec8 {[%emt 0:00:19]} 21. bxc6 {[%emt 0:00:02]} bxc6 {[%emt 0:00:00]} 22. Ne4 {[%emt 0:00:12]} (22. Na4 $11 Nxa4 23. Bxe5) 22... Bb2 $17 {[%emt 0:00:10]} 23. Rc2 {[%emt 0:00:32]} Bxa2 {[%emt 0:00:43]} (23... Na4 $1 $17 24. Nd6 Rcb8) 24. Bxb2 $11 {[%emt 0:00:11]} Bb3 $1 $36 {[%emt 0:00:04][%mdl 2048] Black has the initiative.} 25. Nf6+ {[%emt 0:00:01]} Kh8 {[%emt 0:00:35]} 26. Nd5+ $2 {[%emt 0:00:13][%mdl 8192]} (26. Rdc1 $11 Bxc2 27. Bd4 (27. Ba1 Rd8 $14)) 26... axb2 $19 {[%emt 0:00:02]} 27. Rxb2 {[%emt 0:00:18]} Bxd1 {[%emt 0:00:02]} 28. Nxb6 {[%emt 0:00:02]} Rcb8 {[%emt 0:00:22]} 29. Nxa8 {[%emt 0:00:14]} Rxb2 {[%emt 0:00:02]} 30. Bxc6 {[%emt 0:00:00][%mdl 4096] Endgame KRB-KBN} Kg8 {[%emt 0:00:20]} (30... Rb1 $19 {[%cal Rd1f3] has better winning chances.} 31. Kg2 Kg7) 31. Bd5 {[%emt 0:00:11] Against Bf3} (31. h3 $17) 31... Bb3 {[%emt 0:00:05]} (31... Rb5 $19 32. Bg2 Kf8) 32. Bf3 {[%emt 0:00:04]} (32. Nc7 $17 {keeps fighting.}) 32... Bc4 {[%emt 0:00:04] And now ...Rb1+ would win.} 33. Kg2 {[%emt 0:00:04]} Kf8 {[%emt 0:00:10]} 34. Nc7 {[%emt 0:00:05]} Ke7 {[%emt 0:00:02]} (34... Rd2 $1 $19 35. Bc6 Rc2) 35. Nd5+ $17 {[%emt 0:00:06]} Bxd5 {[%emt 0:00:01]} 36. Bxd5 {[%emt 0:00:00] KR-KB} Rd2 {[%emt 0:00:01]} 37. e4 {[%emt 0:00:04]} (37. Bf3 $142) 37... h5 {[%emt 0:00:02]} 38. Kf3 {[%emt 0:00:02]} Rd3+ {[%emt 0:00:03]} 39. Kf4 {[%emt 0:00:05]} Rd2 {[%emt 0:00:01]} (39... f6 $17 40. h4 Ra3) 40. Ke3 {[%emt 0:00:01]} (40. Kf3 $1 $11) 40... Rb2 {[%emt 0:00:01]} 41. h4 {[%emt 0:00:01]} Rb1 {[%emt 0:00:05]} 42. Kf4 {[%emt 0:00:02]} Rf1 {[%emt 0:00:01]} 43. Kf3 {[%emt 0:00:09]} Re1 {[%emt 0:00:01]} 44. Kf4 {[%emt 0:00:04]} Rf1 {[%emt 0:00:02]} (44... f6 $17 45. f3 Ra1) 45. f3 {[%emt 0:00:01]} (45. Kf3 $1 $11) 45... Rg1 {[%emt 0:00:02]} 46. Bc4 {[%emt 0:00:16]} (46. g4 $15) 46... Kf6 {[%emt 0:00:02]} (46... f6 $1 $17 47. Bd3 Rd1) 47. Bd5 {[%emt 0:00:34]} Ke7 {[%emt 0:00:02]} (47... Rf1 $17) 48. Bb3 {[%emt 0:00:01]} ({White should try} 48. Bc4 $1 $11) 48... Kf6 {[%emt 0:00:01]} (48... f6 $1 $17 49. Ba2 Rd1) 49. Bc4 {[%emt 0:00:05]} (49. Bd5 $1 $11) 49... Kg7 {[%emt 0:00:01]} 50. Bb3 {[%emt 0:00:16]} ({White should play} 50. g4) 50... Kf6 {[%emt 0:00:02]} (50... f6 $1 $17 {aiming for ...Rg2.} 51. Be6 Kh6) 51. Ba4 {[%emt 0:00:01]} (51. Bc4 $11 {remains equal.}) 51... Kg7 {[%emt 0:00:01]} (51... Rc1 $17) 52. Bd7 {[%emt 0:00:09]} ({White must play} 52. Bb3 $1 $11) 52... Kf6 {[%emt 0:00:01]} (52... f6 $1 $17 {...Kh6 is the strong threat.} 53. Ke3 Ra1) 53. Be8 {[%emt 0:00:04] [#]} (53. Ba4 $1 $11) 53... Ke7 $1 {[%emt 0:00:01]} 54. Bb5 {[%emt 0:00:01] [#]} Kf6 {[%emt 0:00:01]} (54... f6 $1 $17 55. Bc4 Rc1) 55. Ba6 {[%emt 0:00:05]} (55. Bc4 $11 {keeps the balance.}) 55... Kg7 {[%emt 0:00:01]} 56. e5 {[%emt 0:00:05]} Ra1 {[%emt 0:00:07]} 57. Bb7 {[%emt 0:00:03]} Ra4+ {[%emt 0:00:01]} 58. Be4 {[%emt 0:00:02]} f5 {[%emt 0:00:03]} 59. exf6+ $1 {[%emt 0:00:02]} Kxf6 {[%emt 0:00:00]} 60. g4 {[%emt 0:00:03]} hxg4 {[%emt 0:00:00]} (60... Ra5 $15) 61. fxg4 $11 {[%emt 0:00:01] The position is equal.} Rb4 {[%emt 0:00:06]} 62. g5+ {[%emt 0:00:01]} Ke6 {[%emt 0:00:08]} 63. Kf3 {[%emt 0:00:02]} Ke5 {[%emt 0:00:02]} 64. Bxg6 {[%emt 0:00:06]} Rxh4 {[%emt 0:00:00]} 65. Kg3 {[%emt 0:00:01]} Rh1 {[%emt 0:00:02]} 66. Kg2 {[%emt 0:00:16]} Kf4 {[%emt 0:00:03]} 67. Kxh1 {[%emt 0:00:02]} Kxg5 {[%emt 0:00:00] Weighted Error Value: White=0.57/Black=0.40} 1/2-1/2